fUST/lending_fUST_20240229
["ID","MTS","AMOUNT","RATE_DAILY","PERIOD"]
[315620165,1709142644722,-503.8292939,0.00020299,2]
[315620167,1709142644733,-1000.0,0.00020299,5]
[315620169,1709142644745,-2275.0,0.00020299,2]
[315620172,1709142644758,-324.09221405,0.00020313,2]
[315620174,1709142644772,-224.316234,0.00020313,2]
[315620176,1709142644783,-229.9481738,0.00020313,2]
[315620178,1709142644795,-226.17439088,0.00020313,2]
[315620180,1709142644806,-181.48686082,0.00020313,2]
[315620182,1709142644817,-1481.91576658,0.00020313,2]
[315620186,1709142644830,-199.53801727,0.00020313,2]
[315620191,1709142644841,-412.00388915,0.00020313,2]
[315620193,1709142644852,-250.52381681,0.00020313,2]
[315620197,1709142644863,-233.66514653,0.00020313,2]
[315620200,1709142644874,-248.65763738,0.00020313,2]
[315620203,1709142644888,-3032.13518253,0.00020313,2]
[315620205,1709142644898,-277.91950418,0.00020313,2]
[315620208,1709142644909,-173.14715211,0.00020313,2]
[315620210,1709142644920,-161.62783288,0.00020314,2]
[315620212,1709142644933,-4401.3985244,0.00020314,2]
[315620214,1709142644943,-2887.7056404,0.00020315,5]
[315620216,1709142644958,-35393.27223001,0.00020315,5]
[315620219,1709142644976,-297.86296016,0.00020315,5]
[315620221,1709142644991,-950.55251704,0.00020315,5]
[315620224,1709142645004,-1072.56520336,0.00020315,5]
[315620230,1709142645060,-500.0,0.00019178,2]
[315620233,1709142645072,-2106.74600495,0.00019726,2]
[315620235,1709142645086,-278.74399505,0.00019726,2]
[315620237,1709142645097,-2385.49,0.0002,2]
[315620239,1709142645107,-2385.49,0.00020273,2]
[315620241,1709142645117,-7006.91038728,0.00020315,5]
[315620244,1709142645130,-11729.03599974,0.00020315,5]
[315620246,1709142645143,-2525.31402966,0.00020315,5]
[315620248,1709142645156,-4547.67314061,0.00020315,5]
[315620271,1709142645170,-13612.74723037,0.00020315,5]
[315620278,1709142645326,-5000.0,0.00020315,5]
[315620283,1709142645339,-5000.0,0.00020315,5]
[315620287,1709142645349,-4975.20230003,0.00020315,5]
[315620293,1709142645362,-24.79769997,0.00020315,5]
[315620297,1709142645373,-5000.0,0.00020315,5]
[315620302,1709142645383,-50000.0,0.00020315,3]
[315620307,1709142645393,-50000.0,0.00020315,3]
[315620312,1709142645402,-50000.0,0.00020315,3]
[315620317,1709142645412,-73744.659155,0.00020315,3]
[315620322,1709142645422,-1568.51303954,0.00020315,2]
[315620327,1709142645434,-5000.0,0.00020315,5]
[315620332,1709142645444,-5000.0,0.00020315,5]
[315620337,1709142645456,-3852.9154339,0.00020315,2]
[315620343,1709142645467,-5000.0,0.00020315,5]
[315620348,1709142645479,-5000.0,0.00020315,5]
[315620353,1709142645490,-5000.0,0.00020315,5]
[315620358,1709142645500,-5000.0,0.00020315,5]
[315620364,1709142645518,-5000.0,0.00020315,5]
[315620369,1709142645532,-5000.0,0.00020315,5]
[315620374,1709142645543,-151.0,0.00020315,2]
[315620379,1709142645554,-5000.0,0.00020315,5]
[315620385,1709142645565,-28074.73102209,0.00020315,2]
[315620391,1709142645576,-818.240797,0.00020315,2]
[315620396,1709142645588,-818.240797,0.00020315,2]
[315620400,1709142645599,-5000.0,0.00020315,5]
[315620404,1709142645610,-22682.08603467,0.00020315,2]
[315620408,1709142645620,-151.0,0.00020315,2]
[315620413,1709142645632,-151.0,0.00020315,2]
[315620419,1709142645645,-1000.0,0.00020361,2]
[315620425,1709142645657,-1595.2552811,0.00020367,2]
[315620430,1709142645669,-818.240797,0.00020396,2]
[315620437,1709142645683,-818.240797,0.00020396,2]
[315620442,1709142645694,-1595.2552811,0.00020443,2]
[315620447,1709142645708,-153.0,0.00020466,2]
[315620451,1709142645718,-153.0,0.00020466,2]
[315620455,1709142645728,-153.0,0.00020466,2]
[315620459,1709142645738,-153.0,0.00020466,2]
[315620463,1709142645749,-620.11642959,0.00020508,2]
[315620467,1709142645759,-166.666666,0.00020524,2]
[315620471,1709142645768,-500.0,0.00020547,2]
[315620474,1709142645778,-791.3,0.00020547,2]
[315620478,1709142645787,-500.0,0.00020547,2]
[315620482,1709142645797,-500.0,0.00020547,2]
[315620485,1709142645807,-1661.7,0.00020547,2]
[315620488,1709142645817,-738.07,0.00020547,2]
[315620491,1709142645827,-1070.15,0.00020547,2]
[315620494,1709142645837,-727.47,0.00020547,2]
[315620497,1709142645852,-754.94,0.00020547,2]
[315620500,1709142645864,-1014.74,0.00020547,2]
[315620503,1709142645874,-500.0,0.00020547,2]
[315620507,1709142645888,-1790.14,0.00020547,2]
[315620510,1709142645901,-11667.56,0.00020547,2]
[315620513,1709142645912,-709.79,0.00020547,2]
[315620516,1709142645922,-595.31,0.00020547,2]
[315620519,1709142645934,-500.0,0.00020547,2]
[315620522,1709142645943,-3418.99,0.00020547,2]
[315620524,1709142645956,-1648.54,0.00020547,2]
[315620526,1709142645966,-1427.2,0.00020547,2]
[315620528,1709142645976,-500.0,0.00020547,2]
[315620530,1709142645986,-605.6,0.00020547,2]
[315620532,1709142645996,-500.0,0.00020547,2]
[315620535,1709142646006,-500.0,0.00020547,2]
[315620538,1709142646016,-1492.16,0.00020547,2]
[315620541,1709142646025,-500.0,0.00020547,2]
[315620544,1709142646035,-1001.39,0.00020547,2]
[315620547,1709142646046,-11042.4,0.00020547,2]
[315620550,1709142646055,-2149.41,0.00020547,2]
[315620553,1709142646065,-500.0,0.00020547,2]
[315620556,1709142646075,-1436.87,0.00020547,2]
[315620559,1709142646084,-1396.66,0.00020547,2]
[315620562,1709142646095,-500.0,0.00020547,2]
[315620565,1709142646104,-894.39,0.00020547,2]
[315620568,1709142646114,-925.4,0.00020547,2]
[315620571,1709142646123,-1314.88,0.00020547,2]
[315620574,1709142646133,-6020.87,0.00020547,2]
[315620577,1709142646142,-2385.49,0.00020547,2]
[315620580,1709142646152,-1000.0,0.00020573,2]
[315620583,1709142646162,-227.75430661,0.00020617,2]
[315620586,1709142646172,-300.07840801,0.00020617,2]
[315620589,1709142646182,-225.69325663,0.00020658,2]
[315620592,1709142646191,-300.09983885,0.00020668,2]
[315620595,1709142646203,-500.0,0.00020669,2]
[315620598,1709142646214,-500.0,0.00020669,2]
[315620601,1709142646223,-500.0,0.00020669,2]
[315620604,1709142646233,-500.0,0.00020669,2]
[315620607,1709142646243,-500.0,0.00020669,2]
[315620610,1709142646253,-500.0,0.00020669,2]
[315620613,1709142646264,-500.0,0.00020669,2]
[315620616,1709142646275,-500.0,0.00020669,2]
[315620619,1709142646284,-500.0,0.00020669,2]
[315620622,1709142646295,-500.0,0.00020669,2]
[315620626,1709142646305,-500.0,0.00020669,2]
[315620628,1709142646315,-500.0,0.00020669,2]
[315620631,1709142646325,-500.0,0.00020669,2]
[315620634,1709142646334,-597.37260918,0.00020669,2]
[315620638,1709142646344,-597.37260918,0.00020669,2]
[315620641,1709142646353,-597.37260918,0.00020669,2]
[315620644,1709142646364,-597.37260918,0.00020669,2]
[315620647,1709142646374,-597.37260918,0.00020669,2]
[315620650,1709142646384,-597.37260918,0.00020669,2]
[315620653,1709142646394,-597.37260918,0.00020669,2]
[315620656,1709142646404,-597.37260918,0.00020669,2]
[315620658,1709142646414,-597.37260918,0.00020669,2]
[315620660,1709142646424,-597.37260918,0.00020669,2]
[315620664,1709142646434,-597.37260918,0.00020669,2]
[315620666,1709142646444,-597.37260918,0.00020669,2]
[315620669,1709142646454,-597.37260918,0.00020669,2]
[315620672,1709142646465,-597.37260918,0.00020669,2]
[315620675,1709142646475,-597.37260918,0.00020669,2]
[315620677,1709142646484,-597.37260918,0.00020669,2]
[315620679,1709142646495,-597.37260918,0.00020669,2]
[315620683,1709142646506,-597.37260918,0.00020669,2]
[315620686,1709142646518,-597.37260918,0.00020669,2]
[315620688,1709142646528,-597.37260918,0.00020669,2]
[315620691,1709142646538,-597.37260918,0.00020669,2]
[315620694,1709142646548,-597.37260918,0.00020669,2]
[315620697,1709142646558,-597.37260918,0.00020669,2]
[315620700,1709142646568,-597.37260918,0.00020669,2]
[315620702,1709142646579,-155.0,0.00020679,2]
[315620705,1709142646590,-151.1163596,0.00020692,4]
[315620708,1709142646600,-475.01635544,0.00020704,2]
[315620711,1709142646611,-159.81897788,0.00020707,2]
[315620714,1709142646621,-1000.0,0.00020713,2]
[315620716,1709142646631,-519.12135671,0.00020721,2]
[315620719,1709142646641,-192.40668639,0.00020748,2]
[315620722,1709142646650,-1000.0,0.00020767,2]
[315620725,1709142646660,-246.51398491,0.00020768,2]
[315620727,1709142646670,-1000.0,0.00020785,2]
[315620730,1709142646679,-719.31845796,0.00020795,2]
[315620733,1709142646689,-500.0,0.00020798,2]
[315620735,1709142646699,-500.0,0.00020798,2]
[315620738,1709142646712,-500.0,0.00020798,2]
[315620741,1709142646723,-500.0,0.00020798,2]
[315620744,1709142646733,-540.74410488,0.00020798,2]
[315620746,1709142646742,-500.0,0.00020798,2]
[315620749,1709142646752,-511.66720677,0.00020798,2]
[315620753,1709142646763,-500.0,0.00020798,2]
[315620756,1709142646773,-500.0,0.00020798,2]
[315620758,1709142646783,-604.31942977,0.00020798,2]
[315620761,1709142646792,-500.0,0.00020798,2]
[315620763,1709142646802,-500.0,0.00020798,2]
[315620766,1709142646811,-500.0,0.00020798,2]
[315620768,1709142646820,-500.0,0.00020798,2]
[315620771,1709142646829,-500.0,0.00020798,2]
[315620773,1709142646838,-500.0,0.00020798,2]
[315620775,1709142646847,-500.0,0.00020798,2]
[315620777,1709142646856,-500.0,0.00020798,2]
[315620779,1709142646865,-500.0,0.00020798,2]
[315620781,1709142646876,-500.0,0.00020798,2]
[315620783,1709142646889,-500.0,0.00020798,2]
[315620785,1709142646898,-500.0,0.00020798,2]
[315620787,1709142646908,-500.0,0.00020798,2]
[315620789,1709142646918,-500.0,0.00020798,2]
[315620791,1709142646928,-500.0,0.00020798,2]
[315620793,1709142646941,-500.0,0.00020798,2]
[315620795,1709142646953,-386921.713,0.00020799,7]
[315620796,1709142646964,-2970.47875261,0.000208,2]
[315620798,1709142646974,-818.240797,0.000208,2]
[315620800,1709142646985,-818.240797,0.000208,2]
[315620802,1709142646995,-580.0,0.000208,2]
[315620803,1709142647004,-151.0,0.00020803,2]
[315620805,1709142647014,-75973.91290245,0.00020821,2]
[315620807,1709142647024,-500.0,0.00020821,2]
[315620809,1709142647033,-791.3,0.00020821,2]
[315620811,1709142647043,-500.0,0.00020821,2]
[315620813,1709142647052,-500.0,0.00020821,2]
[315620815,1709142647062,-1661.7,0.00020821,2]
[315620817,1709142647074,-738.07,0.00020821,2]
[315620819,1709142647084,-1070.15,0.00020821,2]
[315620821,1709142647094,-727.47,0.00020821,2]
[315620823,1709142647104,-754.94,0.00020821,2]
[315620825,1709142647113,-1014.74,0.00020821,2]
[315620827,1709142647123,-500.0,0.00020821,2]
[315620829,1709142647132,-1790.14,0.00020821,2]
[315620831,1709142647143,-11667.56,0.00020821,2]
[315620833,1709142647153,-709.79,0.00020821,2]
[315620835,1709142647163,-595.31,0.00020821,2]
[315620837,1709142647173,-500.0,0.00020821,2]
[315620839,1709142647184,-3418.99,0.00020821,2]
[315620841,1709142647194,-1648.54,0.00020821,2]
[315620843,1709142647206,-1427.2,0.00020821,2]
[315620845,1709142647216,-500.0,0.00020821,2]
[315620847,1709142647226,-605.6,0.00020821,2]
[315620849,1709142647238,-200.15,0.00020821,2]
[315620851,1709142647250,-500.0,0.00020821,2]
[315620853,1709142647261,-1492.16,0.00020821,2]
[315620854,1709142647272,-500.0,0.00020821,2]
[315620855,1709142647283,-1001.39,0.00020821,2]
[315620856,1709142647292,-11042.4,0.00020821,2]
[315620857,1709142647302,-2149.41,0.00020821,2]
[315620858,1709142647312,-500.0,0.00020821,2]
[315620859,1709142647322,-1436.87,0.00020821,2]
[315620860,1709142647332,-1396.66,0.00020821,2]
[315620861,1709142647344,-191.85,0.00020821,2]
[315620862,1709142647354,-894.39,0.00020821,2]
[315620863,1709142647364,-925.4,0.00020821,2]
[315620864,1709142647374,-1314.88,0.00020821,2]
[315620865,1709142647383,-6020.87,0.00020821,2]
[315620866,1709142647393,-2385.49,0.00020821,2]
[315620867,1709142647403,-151.0,0.00020834,2]
[315620868,1709142647413,-818.240797,0.00020834,2]
[315620869,1709142647423,-818.240797,0.00020834,2]
[315620870,1709142647433,-200.4969484,0.00020834,2]
[315620871,1709142647443,-162.08072522,0.00020834,2]
[315620872,1709142647456,-169.82382911,0.00020834,2]
[315620873,1709142647466,-193.22255468,0.00020834,2]
[315620874,1709142647476,-584.3098698,0.00020834,2]
[315620876,1709142647486,-201.68812575,0.00020834,2]
[315620878,1709142647496,-207.50951058,0.00020834,2]
[315620880,1709142647505,-212.22758617,0.00020834,2]
[315620881,1709142647515,-205.72181011,0.00020834,2]
[315620884,1709142647527,-262.57067034,0.00020834,2]
[315620885,1709142647536,-298.11205349,0.00020834,2]
[315620887,1709142647546,-305.93534606,0.00020834,2]
[315620889,1709142647556,-563.11823056,0.00020834,2]
[315620891,1709142647566,-204.71835389,0.00020834,2]
[315620893,1709142647576,-295.33876898,0.00020834,2]
[315620895,1709142647587,-3150.73171569,0.00020834,2]
[315620897,1709142647596,-158.78727562,0.00020834,2]
[315620899,1709142647607,-157.73861463,0.00020834,2]
[315620901,1709142647617,-197.5903061,0.00020834,2]
[315620903,1709142647627,-397.73693479,0.00020834,7]
[315620905,1709142647638,-155.0356582,0.00020834,2]
[315620907,1709142647648,-4379.01,0.00020834,2]
[315620909,1709142647658,-74.57716092,0.00020834,2]
[315620918,1709142647737,-3284.1,0.00020834,2]
[315620930,1709142647860,-1020.33283908,0.00020834,2]
[315620932,1709142647870,-4379.01,0.00020834,2]
[315620934,1709142647882,-4379.01,0.00020834,2]
[315620936,1709142647896,-576.81616331,0.00020834,2]
[315620938,1709142647908,-3802.19383669,0.00020834,2]
[315620940,1709142647918,-4379.01,0.00020834,2]
[315620942,1709142647930,-4379.01,0.00020834,2]
[315620944,1709142647940,-4379.01,0.00020834,2]
[315620946,1709142647950,-4379.01,0.00020834,2]
[315620948,1709142647963,-1070.14724394,0.00020834,2]
[315620950,1709142647976,-3308.86275606,0.00020834,2]
[315620952,1709142647986,-155.19554639,0.00020835,2]
[315620954,1709142647995,-344.33041305,0.00020835,2]
[315620956,1709142648005,-1463.61214084,0.00020835,2]
[315620958,1709142648015,-1437.45088074,0.00020835,2]
[315620960,1709142648026,-160.38397635,0.00020835,2]
[315620962,1709142648035,-206.09863426,0.00020835,2]
[315620964,1709142648046,-262.09644911,0.00020835,2]
[315620965,1709142648056,-703.08553243,0.00020835,2]
[315620967,1709142648066,-169.05865888,0.00020835,2]
[315620969,1709142648076,-200.0,0.00020835,2]
[315620971,1709142648087,-200.8401255,0.00020835,2]
[315620974,1709142648097,-202.5785112,0.00020835,2]
[315620975,1709142648106,-300.82270687,0.00020835,2]
[315620977,1709142648116,-513.83428987,0.00020835,3]
[315620979,1709142648125,-175.9557257,0.00020835,2]
[315620981,1709142648136,-964.96462973,0.00020857,2]
[315620983,1709142648146,-1000.0,0.00020883,2]
[315620985,1709142648155,-300.0,0.0002089,2]
[315620997,1709142648269,-150.84577636,0.000209,2]
[315620999,1709142648279,-1500.0,0.000209,2]
[315621001,1709142648290,-1382.74590491,0.000209,2]
[315621003,1709142648304,-117.25409509,0.000209,2]
[315621005,1709142648314,-1500.0,0.000209,2]
[315621007,1709142648324,-1500.0,0.000209,2]
[315621009,1709142648334,-1500.0,0.000209,2]
[315621011,1709142648344,-1500.0,0.000209,2]
[315621013,1709142648355,-1500.0,0.000209,2]
[315621015,1709142648365,-1500.0,0.000209,2]
[315621017,1709142648375,-1506.78,0.000209,2]
[315621019,1709142648385,-1000.0,0.00020967,2]
[315621020,1709142648395,-166.666666,0.00020973,2]
[315621022,1709142648405,-1000.0,0.00020997,2]
[315621024,1709142648415,-18641.61119363,0.00020998,2]
[315621026,1709142648424,-1389.77268145,0.00020999,2]
[315621028,1709142648434,-28120.21560914,0.00021,2]
[315621029,1709142648447,-752.38085397,0.00021,2]
[315621030,1709142648461,-965.94163052,0.00021,2]
[315621031,1709142648473,-1053.69967696,0.00021,2]
[315621032,1709142648484,-15339.67618219,0.00021,2]
[315621033,1709142648565,-500.0,0.00019178,2]
[315621034,1709142648575,-9090.58,0.00019716,3]
[315621035,1709142648587,-936.71502281,0.00019716,3]
[315621036,1709142648624,-1386.89089464,0.00019716,3]
[315621037,1709142648635,-11486.66408255,0.00019716,3]
[315621038,1709142648645,-1595.2552811,0.00020519,2]
[315621039,1709142648655,-304452.53198805,0.00021,2]
[315621040,1709142648669,-1304.20499373,0.00021,2]
[315621041,1709142648681,-21465.9999788,0.00021,2]
[315621042,1709142648692,-8316.16527765,0.00021,2]
[315621043,1709142648707,-5575.0,0.00021,2]
[315621048,1709142648772,-155.15360207,0.00020054,2]
[315621050,1709142648782,-824.27860177,0.00021,2]
[315621052,1709142648793,-5051.96110653,0.00021,2]
[315621054,1709142648805,-2677.5,0.00021,2]
[315621057,1709142648816,-2027.25313438,0.00021,2]
[315621059,1709142648827,-3028.17940522,0.00021,2]
[315621064,1709142648870,-500.0,0.00019178,2]
[315621066,1709142648879,-16827.99865255,0.00021,2]
[315626850,1709143760072,385.0,0.00015,2]
[315626964,1709143837671,-155.15515516,0.00017599,2]
[315626966,1709143837681,-156.0715124,0.000176,2]
[315626968,1709143837692,-2498.19015947,0.00017642,2]
[315626970,1709143837703,-8174.1792397,0.00017643,2]
[315626972,1709143837713,-2317.1882869,0.00017959,2]
[315626974,1709143837724,-300.0,0.00018012,2]
[315626976,1709143837734,-1259.27506264,0.000189,2]
[315626978,1709143837744,-1013.6282791,0.0001899,2]
[315626980,1709143837753,-8771.39481409,0.00018998,2]
[315626981,1709143837763,-2958.11858042,0.00019,2]
[315626983,1709143837774,-13876.19699957,0.00019,2]
[315626985,1709143837785,-160.62755039,0.00019078,2]
[315626987,1709143837795,-318.32,0.00019168,3]
[315626989,1709143837805,-500.0,0.00019178,2]
[315626991,1709143837815,-500.0,0.00019178,2]
[315626993,1709143837825,-500.0,0.00019178,2]
[315626995,1709143837834,-500.0,0.00019178,2]
[315626997,1709143837844,-500.0,0.00019178,2]
[315626999,1709143837854,-500.0,0.00019178,2]
[315627000,1709143837864,-500.0,0.00019178,2]
[315627002,1709143837874,-612.4953323,0.00019178,2]
[315627005,1709143837885,-500.0,0.00019178,2]
[315627008,1709143837895,-500.768202,0.00019178,2]
[315627011,1709143837904,-318.14686386,0.00019178,2]
[315627014,1709143837915,-500.0,0.00019178,2]
[315627017,1709143837925,-500.0,0.00019178,2]
[315627020,1709143837934,-500.88794162,0.00019178,2]
[315627023,1709143837944,-500.0,0.00019178,2]
[315627026,1709143837953,-500.60797571,0.00019178,2]
[315627029,1709143837967,-500.0,0.00019178,2]
[315627032,1709143837977,-645.12747004,0.00019178,2]
[315627035,1709143837989,-501.09763869,0.00019178,2]
[315627038,1709143838000,-503.01168124,0.00019178,2]
[315627041,1709143838011,-543.32,0.00019178,2]
[315627044,1709143838021,-500.0,0.00019178,2]
[315627047,1709143838031,-500.0,0.00019178,2]
[315627050,1709143838040,-500.45944832,0.00019178,2]
[315627053,1709143838051,-500.0,0.00019178,2]
[315627056,1709143838060,-337.95024407,0.00019178,2]
[315627059,1709143838071,-500.42379287,0.00019178,2]
[315627061,1709143838081,-500.0,0.00019178,2]
[315627063,1709143838090,-501.40336033,0.00019178,2]
[315627065,1709143838100,-500.0,0.00019178,2]
[315627067,1709143838109,-500.0,0.00019178,2]
[315627069,1709143838119,-1177.04,0.00019178,2]
[315627070,1709143838129,-500.0,0.00019178,2]
[315627072,1709143838143,-500.0,0.00019178,2]
[315627074,1709143838153,-680.96,0.00019178,2]
[315627076,1709143838162,-500.0,0.00019178,2]
[315627078,1709143838173,-641.93,0.00019178,2]
[315627080,1709143838184,-502.18873382,0.00019178,2]
[315627082,1709143838194,-798.75,0.00019178,2]
[315627084,1709143838208,-500.0,0.00019178,2]
[315627086,1709143838218,-500.0,0.00019178,2]
[315627088,1709143838229,-500.0,0.00019178,2]
[315627090,1709143838239,-262.36066584,0.00019178,2]
[315627092,1709143838252,-636.87754851,0.00019178,2]
[315627094,1709143838263,-500.0,0.00019178,2]
[315627096,1709143838275,-503.07925048,0.00019178,2]
[315627098,1709143838288,-500.0,0.00019178,2]
[315627100,1709143838300,-500.0,0.00019178,2]
[315627102,1709143838311,-500.0,0.00019178,2]
[315627104,1709143838321,-500.0,0.00019178,2]
[315627106,1709143838332,-500.0,0.00019178,2]
[315627108,1709143838342,-500.0,0.00019178,2]
[315627110,1709143838354,-500.0,0.00019178,2]
[315627112,1709143838365,-500.0,0.00019178,2]
[315627114,1709143838376,-500.0,0.00019178,2]
[315627115,1709143838390,-378.73239261,0.00019178,2]
[315627117,1709143838401,-500.0,0.00019178,2]
[315627119,1709143838412,-500.0,0.00019178,2]
[315627121,1709143838423,-500.0,0.00019178,2]
[315627123,1709143838435,-500.0,0.00019178,2]
[315627125,1709143838447,-160.80462119,0.00019178,2]
[315627127,1709143838459,-500.0,0.00019178,2]
[315627129,1709143838470,-500.0,0.00019178,2]
[315627131,1709143838480,-500.0,0.00019178,2]
[315627133,1709143838491,-500.0,0.00019178,2]
[315627135,1709143838504,-500.0,0.00019178,2]
[315627137,1709143838515,-500.0,0.00019178,2]
[315627139,1709143838526,-500.0,0.00019178,2]
[315627141,1709143838536,-500.0,0.00019178,2]
[315627143,1709143838546,-500.0,0.00019178,2]
[315627145,1709143838557,-500.0,0.00019178,2]
[315627147,1709143838567,-500.0,0.00019178,2]
[315627149,1709143838584,-500.0,0.00019178,2]
[315627151,1709143838595,-500.0,0.00019178,2]
[315627153,1709143838605,-500.0,0.00019178,2]
[315627155,1709143838616,-395.82199088,0.00019178,2]
[315627158,1709143838631,-104.17800912,0.00019178,2]
[315627160,1709143838648,-500.0,0.00019178,2]
[315627162,1709143838658,-170.26427134,0.00019178,2]
[315627164,1709143838669,-503.19472331,0.00019178,2]
[315627166,1709143838679,-590.59055546,0.00019178,2]
[315627168,1709143838689,-500.0,0.00019178,2]
[315627170,1709143838698,-500.0,0.00019178,2]
[315627172,1709143838708,-500.0,0.00019178,2]
[315627174,1709143838717,-500.0,0.00019178,2]
[315627190,1709143838871,-500.0,0.00019178,2]
[315627192,1709143838881,-500.59452776,0.00019178,2]
[315627194,1709143838895,-500.93234217,0.00019178,2]
[315627196,1709143838906,-500.0,0.00019178,2]
[315627198,1709143838915,-579.70161581,0.00019178,2]
[315627202,1709143838944,-180.03838419,0.00019178,2]
[315627204,1709143838953,-500.0,0.00019178,2]
[315627206,1709143838963,-538.02,0.00019178,2]
[315627208,1709143838972,-500.0,0.00019178,2]
[315627210,1709143838982,-504.37178054,0.00019178,2]
[315627212,1709143838992,-500.0,0.00019178,2]
[315627213,1709143839001,-500.0,0.00019178,2]
[315627215,1709143839011,-500.0,0.00019178,2]
[315627217,1709143839021,-500.0,0.00019178,2]
[315627220,1709143839031,-500.0,0.00019178,2]
[315627221,1709143839041,-500.0,0.00019178,2]
[315627223,1709143839050,-500.0,0.00019178,2]
[315627225,1709143839060,-500.0,0.00019178,2]
[315627227,1709143839069,-500.0,0.00019178,2]
[315627229,1709143839079,-218.36768508,0.00019178,2]
[315627231,1709143839089,-500.0,0.00019178,2]
[315627233,1709143839099,-500.0,0.00019178,2]
[315627235,1709143839109,-500.0,0.00019178,2]
[315627237,1709143839119,-500.0,0.00019178,2]
[315627239,1709143839130,-500.0,0.00019178,2]
[315627241,1709143839142,-312.75001907,0.00019178,2]
[315627243,1709143839151,-185.66266711,0.00019178,2]
[315627244,1709143839162,-242.96684262,0.00019178,2]
[315627246,1709143839171,-298.44393123,0.00019178,2]
[315627248,1709143839181,-500.0,0.00019178,2]
[315627251,1709143839193,-500.0,0.00019178,2]
[315627253,1709143839207,-9382.05,0.00019178,2]
[315627255,1709143839216,-500.0,0.00019178,2]
[315627257,1709143839226,-500.0,0.00019178,2]
[315627259,1709143839238,-1295.1,0.00019178,2]
[315627261,1709143839249,-500.0,0.00019178,2]
[315627263,1709143839258,-500.0,0.00019178,2]
[315627265,1709143839268,-500.0,0.00019178,2]
[315627267,1709143839278,-457.66523061,0.00019178,2]
[315627269,1709143839288,-500.0,0.00019178,2]
[315627270,1709143839298,-620.86,0.00019178,2]
[315627272,1709143839307,-500.0,0.00019178,2]
[315627274,1709143839318,-500.0,0.00019178,2]
[315627276,1709143839327,-500.0,0.00019178,2]
[315627278,1709143839336,-501.87966091,0.00019178,2]
[315627280,1709143839346,-500.0,0.00019178,2]
[315627282,1709143839355,-256.30798704,0.00019178,2]
[315627284,1709143839365,-500.96626582,0.00019178,2]
[315627286,1709143839376,-2953.06,0.00019178,2]
[315627288,1709143839389,-1723.3,0.00019178,2]
[315627290,1709143839401,-1198.45,0.00019178,2]
[315627292,1709143839413,-500.0,0.00019178,2]
[315627294,1709143839424,-500.0,0.00019178,2]
[315627298,1709143839435,-500.0,0.00019178,2]
[315627301,1709143839445,-1147.51,0.00019178,2]
[315627303,1709143839456,-426.64264298,0.00019178,2]
[315627305,1709143839468,-500.0,0.00019178,2]
[315627307,1709143839478,-336.834071,0.00019178,2]
[315627309,1709143839489,-853.25,0.00019178,2]
[315627311,1709143839501,-253.03741308,0.00019178,2]
[315627313,1709143839512,-414.289761,0.00019178,2]
[315627314,1709143839523,-500.0,0.00019178,2]
[315627316,1709143839536,-1261.1,0.00019178,2]
[315627318,1709143839546,-500.0,0.00019178,2]
[315627320,1709143839558,-9749.62,0.00019178,2]
[315627322,1709143839568,-500.0,0.00019178,2]
[315627324,1709143839579,-500.0,0.00019178,2]
[315627326,1709143839589,-500.0,0.00019178,2]
[315627328,1709143839600,-500.0,0.00019178,2]
[315627329,1709143839610,-500.0,0.00019178,2]
[315627331,1709143839621,-1017.85,0.00019178,2]
[315627333,1709143839631,-500.0,0.00019178,2]